bitfinex-derivatives/quotes_SOLF0:USTF0_20241103
["timestamp","ask_amount","ask_price","bid_price","bid_amount"]
[1730660730382,3.58,158.97,158.92,12.07513221]
[1730660730588,42.49286513,159.03,158.96,12.07513221]
[1730660731086,6.7251,159.04,159.0,3.1456]
[1730660731390,3.58,159.04,158.98,12.07513221]
[1730660731583,3.1451,159.03,158.99,3.1457]
[1730660731764,3.1451,159.03,158.98,12.07513221]
[1730660732081,3.1451,159.03,158.99,3.1458]
[1730660732276,43.47890295,159.09,158.98,12.07513221]
[1730660732277,3.1449,159.05,158.98,12.07513221]
[1730660732482,6.7249,159.05,158.99,1.4022]
[1730660732787,6.7249,159.05,159.01,3.1454]
[1730660734080,3.1449,159.05,159.01,3.1454]
[1730660737299,3.1449,159.05,158.99,1.4022]
[1730660737300,3.58,159.06,158.99,1.4022]
[1730660737893,3.1452,159.03,158.99,4.548]
[1730660738892,3.1452,159.03,158.99,1.4022]
[1730660739096,3.1452,159.03,159.0,3.1457]
[1730660739293,3.58,159.06,159.0,3.1457]
[1730660739492,3.1451,159.04,159.0,3.1457]
[1730660739698,3.58,159.06,159.0,3.1457]
[1730660741796,3.1451,159.04,159.0,3.1457]
[1730660743201,3.58,159.06,159.0,3.1457]
[1730660743393,3.1452,159.03,159.0,3.1457]
[1730660744575,3.58,159.06,159.01,3.1455]
[1730660744576,3.145,159.04,159.01,3.1455]
[1730660745361,3.58,159.06,158.99,1.4022]
[1730660745581,43.47890295,159.09,159.01,12.07513221]
[1730660745767,46.05890295,159.09,159.01,12.07513221]
[1730660747275,3.1446,159.06,159.02,3.1453]
[1730660748067,46.05890295,159.09,159.01,12.07513221]
[1730660748282,3.1451,159.04,159.01,3.1454]
[1730660748476,46.05890295,159.09,158.99,1.4022]
[1730660748882,3.1445,159.06,159.0,3.1456]
[1730660749077,46.05890295,159.09,158.99,1.4022]
[1730660749682,3.1449,159.05,159.01,3.1454]
[1730660749977,46.05890295,159.09,159.01,3.1454]
[1730660751681,46.05890295,159.09,159.0,3.1456]
[1730660752376,46.05890295,159.09,158.99,1.4022]
[1730660752881,3.1445,159.06,159.02,3.1452]
[1730660753271,3.1445,159.06,159.02,10.87880111]
[1730660753585,3.1448,159.05,159.02,10.87880111]
[1730660753878,3.1448,159.05,159.02,3.1452]
[1730660754466,3.1448,159.05,159.01,3.1454]
[1730660756378,3.1447,159.05,159.0,7.73360111]
[1730660756586,7.73360111,159.07,159.0,7.73360111]
[1730660756882,3.1451,159.04,159.0,10.87930111]
[1730660760274,3.1447,159.06,159.02,7.73360111]
[1730660760492,3.1447,159.06,159.03,7.73360111]
[1730660761383,3.1447,159.06,159.03,10.87860111]
[1730660762285,3.56,159.08,159.03,10.87860111]
[1730660762286,3.1443,159.07,159.04,3.1448]
[1730660762675,3.1443,159.07,159.05,7.73360111]
[1730660762874,3.56,159.12,159.06,7.73360111]
[1730660763075,3.56,159.12,159.08,7.73360111]
[1730660763680,3.56,159.12,159.07,3.1443]
[1730660764087,3.1436,159.11,159.07,3.1443]
[1730660768792,3.56,159.12,159.06,7.73360111]
[1730660768988,3.1442,159.08,159.05,13.61530111]
[1730660769294,3.56,159.11,159.05,13.61530111]
[1730660770179,3.1441,159.09,159.05,13.61530111]
[1730660770380,3.1441,159.09,159.05,12.26940111]
[1730660770691,3.1437,159.11,159.08,7.73360111]
[1730660771184,7.73360111,159.15,159.08,7.73360111]
[1730660771390,11.29360111,159.15,159.08,7.73360111]
[1730660771583,3.1433,159.13,159.1,7.73360111]
[1730660772897,3.143,159.14,159.1,10.87720111]
[1730660773187,3.56,159.18,159.12,7.73360111]
[1730660773383,3.56,159.18,159.14,7.73360111]
[1730660773896,6.7023,159.18,159.14,10.87650111]
[1730660774882,3.1426,159.16,159.13,7.73360111]
[1730660775189,3.1426,159.16,159.12,3.1432]
[1730660776387,3.1421,159.19,159.15,3.1427]
[1730660776688,3.1421,159.19,159.16,7.73360111]
[1730660777289,3.1416,159.21,159.17,10.87590111]
[1730660778284,3.1418,159.2,159.17,7.73360111]
[1730660778890,3.1413,159.23,159.19,3.1418]
[1730660779093,3.1413,159.23,159.19,10.87540111]
[1730660780182,3.1413,159.23,159.15,3.56]
[1730660780183,7.73360111,159.24,159.17,7.73360111]
[1730660780893,3.1415,159.22,159.18,3.1421]
[1730660783089,3.141,159.24,159.2,3.1417]
[1730660783999,7.73360111,159.27,159.21,3.1415]
[1730660784298,11.29360111,159.28,159.21,3.1415]
[1730660784497,7.73360111,159.3,159.23,7.73360111]
[1730660784790,7.73360111,159.31,159.25,7.73360111]
[1730660784993,3.56,159.32,159.25,7.73360111]
[1730660785196,7.73360111,159.3,159.23,7.73360111]
[1730660785592,7.73360111,159.31,159.23,7.73360111]
[1730660785791,3.1401,159.29,159.25,10.87420111]
[1730660786293,3.1401,159.29,159.25,7.73360111]
[1730660786593,7.73360111,159.31,159.25,7.73360111]
[1730660786796,7.73360111,159.31,159.23,7.73360111]
[1730660787003,7.73360111,159.31,159.25,3.1408]
[1730660787297,3.1402,159.29,159.25,10.87440111]
[1730660787592,7.73360111,159.31,159.26,3.1406]
[1730660788201,4.9378,159.33,159.27,7.73360111]
[1730660788202,11.29360111,159.33,159.27,7.73360111]
[1730660788497,3.1398,159.31,159.27,10.87380111]
[1730660788699,7.73360111,159.33,159.22,3.56]
[1730660788700,7.73360111,159.33,159.25,7.73360111]
[1730660789591,3.1397,159.31,159.26,3.1404]
[1730660789787,7.73360111,159.31,159.25,7.73360111]
[1730660790296,3.1402,159.28,159.23,7.73360111]
[1730660790990,3.1406,159.27,159.23,7.73360111]
[1730660791293,7.73360111,159.3,159.22,7.73360111]
[1730660791695,3.1405,159.27,159.23,3.141]
[1730660791896,7.73360111,159.3,159.23,3.141]
[1730660792091,7.73360111,159.3,159.22,7.73360111]
[1730660792402,7.73360111,159.3,159.22,10.87490111]
[1730660792696,3.1409,159.25,159.21,9.4422]
[1730660792891,3.1409,159.25,159.21,2.7407]
[1730660793086,7.73360111,159.28,159.22,7.73360111]
[1730660793701,3.1405,159.27,159.22,7.73360111]
[1730660794003,7.73360111,159.28,159.22,7.73360111]
[1730660794691,11.29360111,159.29,159.24,10.87450111]
[1730660794892,11.29360111,159.29,159.24,7.73360111]
[1730660795199,7.73360111,159.29,159.22,7.73360111]
[1730660796501,3.1404,159.27,159.22,10.87480111]
[1730660796999,7.73360111,159.28,159.22,7.73360111]
[1730660797400,3.1409,159.25,159.22,7.73360111]
[1730660798200,3.1409,159.25,159.22,10.87490111]
[1730660798902,3.1409,159.25,159.22,3.1413]
[1730660799404,7.73360111,159.28,159.21,1.3655]
[1730660799592,7.73360111,159.26,159.21,1.3655]
[1730660799997,3.1411,159.24,159.21,1.3655]
[1730660800499,9.10230111,159.29,159.22,7.73360111]
[1730660801092,7.73360111,159.33,159.25,7.73360111]
[1730660801396,11.29360111,159.33,159.25,7.73360111]
[1730660801602,3.1398,159.3,159.26,3.1405]
[1730660802405,3.1398,159.3,159.27,3.1403]
[1730660802604,103.69409488,159.34,159.27,7.73360111]
[1730660803095,3.1396,159.32,159.28,3.1401]
[1730660804404,7.73360111,159.31,159.24,7.73360111]
[1730660804804,7.73360111,159.3,159.24,7.73360111]
[1730660805111,7.73360111,159.33,159.27,7.73360111]
[1730660805604,7.73360111,159.33,159.28,3.14]
[1730660805605,3.1395,159.32,159.28,3.14]
[1730660806607,3.1395,159.32,159.29,3.1399]
[1730660806806,3.1395,159.32,159.29,10.87350111]
[1730660807605,3.1395,159.32,159.29,7.73360111]
[1730660808703,111.42769599,159.34,159.29,7.73360111]
[1730660809097,7.73360111,159.36,159.29,7.73360111]
[1730660809305,3.1392,159.33,159.29,10.87350111]
[1730660809511,3.1392,159.33,159.3,7.73360111]
[1730660809891,3.1391,159.34,159.3,10.87330111]
[1730660810107,50.13434127,159.37,159.3,7.73360111]
[1730660810312,50.13434127,159.37,159.32,7.73360111]
[1730660810507,7.73360111,159.35,159.3,7.73360111]
[1730660811308,50.13434127,159.37,159.3,7.73360111]
[1730660811507,3.1393,159.33,159.29,3.1399]
[1730660811697,7.73360111,159.35,159.28,9.15380111]
[1730660812293,7.73360111,159.35,159.29,3.14]
[1730660812504,7.73360111,159.35,159.28,9.15380111]
[1730660813011,7.73360111,159.35,159.3,7.73360111]
[1730660813408,7.73360111,159.35,159.28,1.4202]
[1730660813409,3.1394,159.32,159.28,12.29390111]
[1730660816207,7.73360111,159.35,159.28,9.15380111]
[1730660816410,7.73360111,159.35,159.27,3.54]
[1730660816411,7.73360111,159.32,159.27,7.73360111]
[1730660816597,7.73360111,159.32,159.26,1.4257]
[1730660816805,3.1397,159.31,159.26,4.5663]
[1730660817000,7.73360111,159.32,159.26,4.5663]
[1730660817401,3.1397,159.31,159.26,1.4257]
[1730660817601,7.73360111,159.3,159.24,7.73360111]
[1730660818011,3.1403,159.28,159.24,7.73360111]
[1730660819119,3.1403,159.28,159.25,7.73360111]
[1730660819310,3.1403,159.28,159.25,10.87430111]
[1730660820219,3.1404,159.27,159.25,7.73360111]
[1730660820412,7.73360111,159.3,159.25,7.73360111]
[1730660821207,3.14,159.29,159.26,3.1405]
[1730660821403,3.14,159.29,159.27,7.73360111]
[1730660823606,9.12910111,159.33,159.28,3.1402]
[1730660823808,7.73360111,159.33,159.28,3.1402]
[1730660824004,7.73360111,159.33,159.27,7.73360111]
[1730660824211,7.73360111,159.36,159.3,10.87330111]
[1730660824406,7.73360111,159.36,159.3,7.73360111]
[1730660824608,7.73360111,159.35,159.28,9.10420111]
[1730660824923,7.73360111,159.31,159.25,60.50543369]
[1730660825422,3.1399,159.3,159.26,3.1404]
[1730660825612,7.73360111,159.35,159.28,7.73360111]
[1730660826518,2.0164,159.36,159.25,52.77183258]
[1730660826519,7.73360111,159.36,159.3,7.73360111]
[1730660827108,3.1391,159.34,159.3,10.87330111]
[1730660829420,7.73360111,159.38,159.31,7.73360111]
[1730660829619,3.1388,159.35,159.31,7.73360111]
[1730660830012,3.1388,159.35,159.31,10.87300111]
[1730660830215,7.73360111,159.39,159.33,7.73360111]
[1730660830408,7.73360111,159.41,159.34,7.73360111]
[1730660830615,1.09448282,159.4,159.34,7.73360111]
[1730660830815,3.1386,159.37,159.34,7.73360111]
[1730660831017,7.73360111,159.42,159.36,7.73360111]
[1730660831316,42.38563893,159.44,159.37,7.73360111]
[1730660831317,3.138,159.4,159.37,7.73360111]
[1730660831521,50.11924004,159.44,159.37,7.73360111]
[1730660831714,1.09459245,159.43,159.37,7.73360111]
[1730660831918,7.73360111,159.42,159.35,7.73360111]
[1730660832116,7.73360111,159.4,159.34,7.73360111]
[1730660832916,7.73360111,159.43,159.37,7.73360111]
[1730660833128,3.1379,159.4,159.37,7.73360111]
[1730660833315,7.73360111,159.43,159.37,7.73360111]
[1730660833522,3.138,159.39,159.37,7.73360111]
[1730660834125,3.1384,159.37,159.36,7.73360111]
[1730660834327,7.73360111,159.41,159.36,7.73360111]
[1730660834522,7.73360111,159.47,159.4,7.73360111]
[1730660834721,3.1371,159.44,159.42,7.73360111]
[1730660834922,1.3059,159.54,159.42,7.73360111]
[1730660834923,7.73360111,159.5,159.42,7.73360111]
[1730660835131,1.094888,159.49,159.44,7.73360111]
[1730660835331,4.23130592,159.48,159.44,7.73360111]
[1730660835728,1.09490592,159.48,159.45,7.73360111]
[1730660836834,1.09490592,159.48,159.46,3.1366]
[1730660837034,1.09490592,159.48,159.47,7.73360111]
[1730660837239,4.8459,159.54,159.47,7.73360111]
[1730660837240,7.73360111,159.54,159.47,7.73360111]
[1730660837536,7.73360111,159.54,159.44,1.3206]
[1730660837537,3.1356,159.52,159.49,7.73360111]
[1730660837725,7.73360111,159.56,159.49,7.73360111]
[1730660837928,3.1351,159.54,159.51,7.73360111]
[1730660838526,3.54,159.58,159.44,54.02679426]
[1730660838527,3.1343,159.58,159.52,11.27360111]
[1730660838726,7.73360111,159.58,159.52,7.73360111]
[1730660838923,1.3878,159.6,159.44,54.02679426]
[1730660838924,7.73360111,159.56,159.51,7.73360111]
[1730660839133,7.73360111,159.56,159.5,3.54]
[1730660839444,3.135,159.55,159.5,15.59064053]
[1730660839636,1.3878,159.6,159.5,15.59064053]
[1730660839935,1.3878,159.6,159.51,3.1356]
[1730660839936,3.1347,159.57,159.51,3.1356]
[1730660840140,3.1347,159.57,159.52,1.4229]
[1730660840343,12.05064053,159.64,159.52,13.47354053]
[1730660840648,1.08672461,159.63,159.53,1.308]
[1730660840831,3.1344,159.58,159.53,1.308]
[1730660841027,12.05064053,159.61,159.52,4.9629]
[1730660841235,12.05064053,159.61,159.52,1.4229]
[1730660841439,3.1351,159.54,159.52,1.4229]
[1730660841744,12.05064053,159.61,159.51,3.54]
[1730660842153,12.05064053,159.57,159.48,3.54]
[1730660842439,15.59064053,159.57,159.46,1.3414]
[1730660842644,3.1364,159.48,159.46,4.8814]
[1730660843053,3.1364,159.48,159.45,1.308]
[1730660843238,12.05064053,159.51,159.41,3.54]
[1730660844039,12.05064053,159.54,159.42,12.05064053]
[1730660844234,12.05064053,159.54,159.41,3.54]
[1730660844235,45.89899691,159.55,159.45,12.05064053]
[1730660845047,3.1362,159.49,159.45,12.05064053]
[1730660845542,45.89899691,159.55,159.45,12.05064053]
[1730660845842,3.1363,159.48,159.45,12.05064053]
[1730660846234,45.89899691,159.55,159.45,12.05064053]
[1730660846837,3.136,159.5,159.45,12.05064053]
[1730660847335,3.136,159.5,159.45,15.18744053]
[1730660847540,45.89899691,159.55,159.45,15.18744053]
[1730660847743,3.1361,159.49,159.45,15.18744053]
[1730660848135,3.1361,159.49,159.45,12.05064053]
[1730660848335,45.89899691,159.55,159.45,15.57064053]
[1730660849043,3.1361,159.49,159.45,18.70744053]
[1730660849648,3.1361,159.49,159.46,3.1366]
[1730660849845,42.35899691,159.55,159.47,12.05064053]
[1730660850337,42.35899691,159.55,159.47,15.18694053]
[1730660850338,3.1358,159.51,159.47,15.18694053]
[1730660851436,3.1354,159.53,159.5,12.05064053]
[1730660851843,3.1354,159.53,159.5,15.57064053]
[1730660852042,16.11844053,159.61,159.5,15.57064053]
[1730660852043,4.0678,159.61,159.52,12.05064053]
[1730660852252,1.2985,159.61,159.55,12.05064053]
[1730660852746,3.52,159.63,159.55,12.05064053]
[1730660853037,3.52,159.63,159.57,12.05064053]
[1730660853244,4.8185,159.67,159.57,12.05064053]
[1730660853449,1.08710727,159.66,159.57,12.05064053]
[1730660853637,3.1338,159.61,159.57,12.05064053]
[1730660854340,3.1338,159.61,159.57,15.18504053]
[1730660855142,3.1335,159.63,159.58,3.1341]
[1730660855442,3.1335,159.63,159.59,12.05064053]
[1730660855646,1.2985,159.67,159.59,12.05064053]
[1730660855941,3.1329,159.65,159.61,12.05064053]
[1730660856159,42.33885252,159.7,159.61,12.05064053]
[1730660856335,3.1327,159.66,159.64,12.05064053]
[1730660857848,3.1327,159.66,159.62,12.05064053]
[1730660858546,3.1327,159.66,159.62,15.18404053]
[1730660858948,42.33885252,159.7,159.62,15.18404053]
[1730660859153,3.1325,159.67,159.62,15.18404053]
[1730660859651,3.1322,159.69,159.64,12.05064053]
[1730660860157,42.33885252,159.7,159.65,3.1328]
[1730660860342,3.1318,159.71,159.66,12.05064053]
[1730660860543,1.352,159.73,159.66,12.05064053]
[1730660861346,3.1321,159.7,159.66,12.05064053]
[1730660862247,1.352,159.73,159.6,12.05064053]
[1730660862248,13.40264053,159.73,159.6,12.05064053]
[1730660862453,13.40264053,159.73,159.43,52.70396459]
[1730660862454,12.05064053,159.69,159.58,12.05064053]
[1730660862654,12.05064053,159.69,159.54,7.6254]
[1730660862655,12.05064053,159.66,159.55,12.05064053]
[1730660862850,3.1342,159.59,159.55,12.05064053]
[1730660863052,1.3636,159.65,159.58,12.05064053]
[1730660863551,3.1334,159.63,159.58,12.05064053]
[1730660864061,3.1333,159.63,159.58,15.18484053]
[1730660864245,43.32766495,159.68,159.58,12.05064053]
[1730660864448,42.32766495,159.68,159.62,15.18414053]
[1730660864649,42.32766495,159.68,159.64,12.05064053]
[1730660864848,1.3636,159.71,159.64,12.05064053]
[1730660865065,3.1319,159.71,159.66,3.1326]
[1730660865448,1.3636,159.75,159.66,3.52]
[1730660865767,3.1316,159.72,159.66,3.52]
[1730660865948,1.3636,159.75,159.66,3.52]
[1730660866264,1.08861448,159.74,159.66,3.52]
[1730660866952,1.3636,159.75,159.64,3.52]
[1730660867154,1.08860458,159.73,159.64,3.52]
[1730660867461,1.3636,159.75,159.64,3.52]
[1730660867661,1.08859017,159.74,159.64,22.76260859]
[1730660868689,3.1317,159.71,159.65,3.1329]
[1730660868849,1.3636,159.75,159.65,3.1329]
[1730660869049,1.08859936,159.74,159.65,3.1329]
[1730660869249,1.3636,159.75,159.65,3.1329]
[1730660869465,1.3636,159.75,159.63,3.52]
[1730660870063,3.1326,159.67,159.63,3.52]
[1730660871462,3.1325,159.68,159.63,6.6532]
[1730660871851,3.52,159.72,159.62,4.1083]
[1730660872064,1.3702,159.71,159.62,2.7569]
[1730660872257,1.3702,159.71,159.59,19.24260859]
[1730660872453,1.3782,159.7,159.59,19.24260859]
[1730660872648,3.1332,159.64,159.59,22.37670859]
[1730660872855,1.3782,159.7,159.59,22.37670859]
[1730660873162,3.1334,159.63,159.58,6.6541]
[1730660873461,3.52,159.67,159.56,19.24260859]
[1730660873656,1.2984,159.66,159.55,3.52]
[1730660873963,3.134,159.6,159.55,3.52]
[1730660874356,3.134,159.6,159.55,6.6547]
[1730660874556,1.2984,159.66,159.54,4.0907]
[1730660874765,1.2984,159.66,159.54,7.6107]
[1730660874953,1.2984,159.66,159.55,3.1348]
[1730660875150,3.134,159.6,159.55,3.1348]
[1730660875360,1.2984,159.66,159.55,3.1348]
[1730660876063,3.134,159.6,159.56,3.1347]
[1730660876377,1.2984,159.66,159.56,19.24260859]
[1730660877069,3.1334,159.63,159.58,3.1341]
[1730660877650,3.1334,159.63,159.56,19.24260859]
[1730660877651,3.52,159.69,159.59,19.24260859]
[1730660878254,3.1329,159.65,159.61,3.1336]
[1730660878762,3.1332,159.64,159.59,25.89670859]
[1730660880156,3.1332,159.64,159.59,22.37670859]
[1730660880356,3.52,159.69,159.56,22.76260859]
[1730660880557,3.1338,159.61,159.56,22.76260859]
[1730660881068,3.52,159.69,159.56,22.76260859]
[1730660881263,3.1336,159.62,159.56,22.76260859]
[1730660881657,3.1336,159.62,159.58,3.1342]
[1730660881857,3.52,159.69,159.58,3.1342]
[1730660882165,3.52,159.69,159.59,3.1341]
[1730660882461,3.52,159.69,159.56,22.76260859]
[1730660882667,3.52,159.69,159.61,3.1336]
[1730660882964,3.1328,159.66,159.59,19.24260859]
[1730660883170,3.1328,159.66,159.61,3.1335]
[1730660883680,3.1321,159.69,159.65,3.1327]
[1730660883868,42.31741093,159.72,159.62,20.55740859]
[1730660883869,45.83741093,159.72,159.62,20.55740859]
[1730660884164,45.83741093,159.72,159.63,1.2987]
[1730660884559,3.1321,159.7,159.63,4.4319]
[1730660884772,45.83741093,159.72,159.63,4.4319]
[1730660884773,45.83741093,159.72,159.63,1.2987]
[1730660885267,3.1324,159.68,159.64,3.133]
[1730660886464,42.31741093,159.72,159.64,19.24260859]
[1730660886869,3.1317,159.72,159.67,3.1323]
[1730660887064,1.3352,159.74,159.67,3.1323]
[1730660887473,3.1316,159.72,159.67,3.1323]
[1730660887771,1.3352,159.74,159.67,3.1323]
[1730660887968,1.3352,159.74,159.66,3.52]
[1730660887969,3.1322,159.69,159.66,3.52]
[1730660888170,3.1322,159.69,159.65,3.1327]
[1730660890255,3.1322,159.69,159.64,22.76260859]
[1730660890256,3.132,159.7,159.66,3.1326]
[1730660890666,3.52,159.75,159.64,22.76260859]
[1730660890864,3.52,159.75,159.67,3.1324]
[1730660890865,3.1318,159.71,159.67,3.1324]
[1730660891065,3.52,159.75,159.64,22.76260859]
[1730660891265,1.3849,159.79,159.64,22.76260859]
[1730660891266,3.1315,159.72,159.68,3.1322]
[1730660892462,3.1323,159.68,159.64,22.37560859]
[1730660892668,3.1323,159.68,159.64,19.24260859]
[1730660892859,19.24260859,159.77,159.64,19.24260859]
[1730660893057,1.0876187,159.76,159.64,19.24260859]
[1730660893574,3.1314,159.73,159.65,3.1327]
[1730660893764,19.24260859,159.77,159.65,3.1327]
[1730660893970,1.08760941,159.76,159.65,3.1327]
[1730660894172,3.1323,159.68,159.64,19.24260859]
[1730660895474,3.1323,159.68,159.64,22.37550859]
[1730660896182,3.1323,159.68,159.64,19.24260859]
[1730660896383,3.1323,159.68,159.65,3.1329]
[1730660897169,3.1325,159.67,159.64,22.37560859]
[1730660897788,3.1324,159.68,159.65,3.1329]
[1730660899279,3.1324,159.68,159.65,15.16123729]
[1730660899583,3.1321,159.7,159.66,3.1326]
[1730660899770,6.2608,159.78,159.67,12.02833729]
[1730660899972,3.1315,159.73,159.7,15.16013729]
[1730660900173,3.52,159.78,159.7,12.02833729]
[1730660900380,3.52,159.78,159.67,15.54833729]
[1730660900580,3.131,159.75,159.68,3.1323]
[1730660900779,3.52,159.78,159.68,3.1323]
[1730660900976,12.02833729,159.82,159.7,12.02833729]
[1730660901181,1.08785746,159.81,159.73,3.1312]
[1730660901385,1.08785746,159.8,159.73,3.1312]
[1730660901687,15.54833729,159.84,159.73,3.1312]
[1730660901879,3.1307,159.77,159.73,3.1312]
[1730660902081,15.54833729,159.84,159.72,16.94333729]
[1730660902082,15.54833729,159.84,159.72,20.07473729]
[1730660902282,1.08792948,159.83,159.72,20.07473729]
[1730660902577,1.08792948,159.83,159.74,12.02833729]
[1730660902984,3.1304,159.78,159.74,12.02833729]
[1730660903288,3.1304,159.78,159.74,3.1311]
[1730660903482,3.1305,159.78,159.72,24.16097454]
[1730660903786,3.52,159.84,159.72,24.16097454]
[1730660903787,3.52,159.84,159.72,20.64097454]
[1730660903980,3.1308,159.76,159.72,1.395]
[1730660905085,3.52,159.84,159.72,1.395]
[1730660905285,3.1309,159.75,159.72,1.395]
[1730660905475,3.52,159.84,159.72,1.395]
[1730660905681,3.1309,159.76,159.72,1.395]
[1730660906686,3.1311,159.74,159.72,1.395]
[1730660906889,3.1311,159.74,159.71,4.8991]
[1730660906890,22.37,159.84,159.71,1.3791]
[1730660907087,1.08810506,159.83,159.71,1.3791]
[1730660907789,1.0,159.82,159.71,1.3791]
[1730660908186,3.1307,159.76,159.72,3.1314]
[1730660908490,1.0,159.82,159.71,1.3791]
[1730660908692,3.52,159.83,159.71,1.3791]
[1730660908877,1.08815982,159.82,159.71,1.3791]
[1730660909285,3.1302,159.79,159.74,3.131]
[1730660909589,3.52,159.83,159.74,3.131]
[1730660909795,1.08817237,159.82,159.74,3.131]
[1730660910185,3.13,159.8,159.74,3.131]
[1730660910390,3.52,159.83,159.71,1.3791]
[1730660910593,1.08817218,159.82,159.75,3.1308]
[1730660910795,3.52,159.83,159.71,4.8991]
[1730660910978,3.52,159.83,159.73,3.1312]
[1730660911384,3.52,159.83,159.71,4.8991]
[1730660911585,1.08816352,159.82,159.71,1.3791]
[1730660912293,1.08816352,159.82,159.73,19.24597454]
[1730660912496,1.3277,159.86,159.74,1.411]
[1730660912699,1.08820421,159.85,159.75,3.1308]
[1730660913495,3.1301,159.8,159.75,3.1308]
[1730660913705,3.1301,159.8,159.74,1.411]
[1730660913891,3.1301,159.8,159.76,3.1307]
[1730660914095,3.1301,159.8,159.74,1.411]
[1730660914404,3.1301,159.8,159.75,3.1308]
[1730660914993,3.1305,159.78,159.74,4.931]
[1730660915895,3.1305,159.78,159.74,8.0621]
[1730660917691,3.1305,159.78,159.74,4.5421]
[1730660917986,3.1299,159.81,159.72,3.1315]
[1730660918186,3.1299,159.81,159.71,1.3791]
[1730660918187,3.52,159.84,159.71,1.3791]
[1730660918383,1.0879466,159.83,159.71,1.3791]
[1730660919297,3.1309,159.76,159.71,1.3791]
[1730660919693,3.52,159.84,159.71,1.3791]
[1730660919893,1.0878573,159.83,159.7,19.24597454]
[1730660920090,22.42017803,159.82,159.68,3.52]
[1730660920291,3.1325,159.68,159.61,3.1335]
[1730660920487,3.1325,159.68,159.62,20.60907454]
[1730660920896,3.1325,159.68,159.62,23.74257454]
[1730660921398,3.1325,159.68,159.62,20.60907454]
[1730660922227,3.52,159.72,159.62,1.3631]
[1730660924717,3.1328,159.66,159.62,1.3631]
[1730660925216,3.52,159.72,159.62,1.3631]
[1730660925411,3.1329,159.65,159.62,1.3631]
[1730660926019,3.52,159.72,159.62,1.3631]
[1730660926313,3.52,159.72,159.57,19.24597454]
[1730660926501,3.52,159.72,159.57,22.76597454]
[1730660926689,1.0,159.71,159.57,25.90047454]
[1730660927699,1.0,159.71,159.57,22.38047454]
[1730660927897,3.1336,159.62,159.57,22.38047454]
[1730660928306,3.1337,159.61,159.57,22.38047454]
[1730660928599,3.52,159.66,159.57,22.38047454]
[1730660928907,3.52,159.66,159.59,19.24597454]
[1730660930099,3.1333,159.63,159.59,22.37997454]
[1730660930907,9.7798,159.81,159.62,19.24597454]
[1730660931113,1.3314,159.79,159.65,19.24597454]
[1730660931298,1.3314,159.79,159.68,3.1322]
[1730660931299,3.1315,159.73,159.68,3.1322]
[1730660931496,4.8514,159.79,159.66,3.52]
[1730660931700,1.08764088,159.78,159.66,3.52]
[1730660933601,3.1312,159.74,159.66,3.52]
[1730660933811,42.94737454,159.79,159.66,3.52]
[1730660934009,1.08761201,159.78,159.66,3.52]
[1730660934311,1.08761201,159.78,159.66,6.6525]
[1730660935214,3.1319,159.71,159.66,6.6525]
[1730660936110,3.1319,159.71,159.66,7.9796]
[1730660937312,3.1319,159.71,159.67,12.03831389]
[1730660938615,3.132,159.7,159.67,12.03831389]
[1730660941015,12.03831389,159.76,159.66,1.3271]
[1730660941319,12.03831389,159.74,159.63,4.9135]
[1730660941511,4.8057,159.73,159.63,4.9135]
[1730660941712,12.03831389,159.71,159.61,52.64564496]
[1730660942103,3.1323,159.68,159.61,52.64564496]
[1730660942413,12.03831389,159.71,159.61,52.64564496]
[1730660942713,12.03831389,159.71,159.61,57.12464496]
[1730660942714,3.1329,159.66,159.61,57.12464496]
[1730660942908,12.03831389,159.71,159.61,57.12464496]
[1730660943501,3.133,159.65,159.61,57.12464496]
[1730660945224,3.133,159.65,159.61,53.99114496]
[1730660946106,6.1941,159.73,159.62,12.03831389]
[1730660946312,4.8057,159.73,159.64,12.03831389]
[1730660946609,4.8057,159.73,159.64,15.17131389]
[1730660946610,3.1323,159.69,159.64,15.17131389]
[1730660946914,4.8057,159.73,159.64,15.17131389]